fUSD/lending_fUSD_20251103
["ID","MTS","AMOUNT","RATE_DAILY","PERIOD"]
[392983371,1762195844408,-1056.69278494,0.00036911,2]
[392983373,1762195844417,-1286.0,0.00036918,20]
[392983375,1762195844426,-1430.0,0.00036932,30]
[392983377,1762195844435,-1056.69278494,0.00036938,2]
[392983379,1762195844444,-162.44609222,0.0003694,2]
[392983381,1762195844452,-161.0482372,0.0003694,15]
[392983383,1762195844461,-1133.10191366,0.0003694,2]
[392983385,1762195844470,-581.54185421,0.0003694,7]
[392983387,1762195844479,-4090.68834367,0.0003694,2]
[392983389,1762195844488,-835.92835608,0.0003694,2]
[392983391,1762195844497,-4391.46361,0.0003696,2]
[392983393,1762195844506,-35013.9981732,0.00036963,4]
[392983395,1762195844516,-25279.0774962,0.00036963,4]
[392983397,1762195844525,-1425.0,0.0003697,2]
[392983399,1762195844535,-1425.0,0.00036973,2]
[392983401,1762195844544,-75837.2324887,0.00036975,4]
[392983403,1762195844553,-500.0,0.00036985,7]
[392983405,1762195844563,-1000.0,0.00036986,2]
[392983407,1762195844572,-151.97796274,0.00036987,60]
[392983409,1762195844581,-150.0,0.00036987,60]
[392983411,1762195844590,-150.0,0.00036987,60]
[392983413,1762195844599,-150.0,0.00036987,60]
[392983415,1762195844608,-150.0,0.00036987,60]
[392983417,1762195844618,-150.0,0.00036987,60]
[392983419,1762195844627,-150.0,0.00036987,60]
[392983421,1762195844636,-150.0,0.00036987,120]
[392983423,1762195844645,-150.0,0.00036987,60]
[392983424,1762195844654,-150.0,0.00036987,60]
[392983425,1762195844664,-500.0,0.00036987,60]
[392983426,1762195844672,-150.0,0.00036987,60]
[392983427,1762195844681,-150.0,0.00036987,2]
[392983428,1762195844690,-500.0,0.00036987,60]
[392983429,1762195844699,-263.9927127,0.00036987,60]
[392983431,1762195844708,-150.0,0.00036987,2]
[392983433,1762195844717,-500.0,0.00036987,60]
[392983435,1762195844727,-179.9042616,0.00036987,60]
[392983437,1762195844736,-150.0,0.00036987,60]
[392983439,1762195844745,-500.0,0.00036987,60]
[392983441,1762195844754,-50558.1549925,0.00036996,4]
[392983443,1762195844763,-1425.0,0.00036999,2]
[392983445,1762195844772,-150.0,0.00037,60]
[392983447,1762195844781,-500.0,0.00037005,7]
[392983449,1762195844791,-420000.0,0.00037006,2]
[392983450,1762195844799,-1000.0,0.00037006,120]
[392983453,1762195844810,-1000.0,0.00037006,2]
[392983455,1762195844819,-3906.0,0.00037011,5]
[392983457,1762195844828,-276.60491743,0.00037014,7]
[392983459,1762195844838,-150.0,0.00037014,7]
[392983461,1762195844846,-290.30043068,0.00037014,7]
[392983463,1762195844855,-172.09165211,0.00037014,7]
[392983465,1762195844864,-150.0,0.00037014,7]
[392983467,1762195844873,-215.29966578,0.00037014,7]
[392983469,1762195844882,-293.69472333,0.00037014,7]
[392983471,1762195844893,-184.52507331,0.00037014,7]
[392983473,1762195844902,-228.40265782,0.00037014,7]
[392983475,1762195844911,-156.69002569,0.00037014,7]
[392983477,1762195844921,-199.0,0.00037035,25]
[392983479,1762195844930,-151.0,0.00037037,14]
[392983481,1762195844939,-623.74232768,0.00037037,7]
[392983483,1762195844947,-151.0,0.00037038,31]
[392983485,1762195844957,-151.0,0.00037038,31]
[392983487,1762195844966,-151.0,0.00037038,31]
[392983489,1762195844975,-151.0,0.00037038,31]
[392983491,1762195844985,-151.0,0.00037038,31]
[392983492,1762195844997,-151.0,0.00037038,31]
[392983494,1762195845006,-151.0,0.00037038,31]
[392983496,1762195845015,-151.0,0.00037038,31]
[392983498,1762195845024,-151.0,0.00037038,31]
[392983500,1762195845034,-151.0,0.00037038,31]
[392983502,1762195845043,-151.0,0.00037038,31]
[392983504,1762195845052,-151.0,0.00037038,31]
[392983507,1762195845065,-151.0,0.00037038,31]
[392983508,1762195845074,-151.0,0.00037038,31]
[392983510,1762195845083,-156.663882,0.00037038,31]
[392983512,1762195845092,-151.0,0.00037038,31]
[392983514,1762195845101,-151.0,0.00037038,31]
[392983516,1762195845110,-151.0,0.00037038,31]
[392983518,1762195845120,-151.0,0.00037038,31]
[392983520,1762195845129,-151.0,0.00037038,31]
[392983522,1762195845138,-151.0,0.00037038,31]
[392983524,1762195845147,-151.0,0.00037038,31]
[392983526,1762195845156,-151.0,0.00037038,31]
[392983528,1762195845166,-151.0,0.00037038,31]
[392983530,1762195845175,-151.0,0.00037038,31]
[392983532,1762195845184,-151.0,0.00037038,31]
[392983534,1762195845194,-151.0,0.00037038,31]
[392983536,1762195845203,-151.0,0.00037038,31]
[392983538,1762195845212,-151.0,0.00037038,31]
[392983540,1762195845221,-151.0,0.00037038,31]
[392983542,1762195845230,-151.0,0.00037038,31]
[392983544,1762195845240,-151.0,0.00037038,31]
[392983546,1762195845249,-151.0,0.00037038,31]
[392983548,1762195845258,-216.351168,0.00037038,31]
[392983550,1762195845267,-151.0,0.00037038,31]
[392983552,1762195845277,-151.0,0.00037038,31]
[392983554,1762195845286,-151.0,0.00037038,31]
[392983556,1762195845295,-245.032682,0.00037038,31]
[392983558,1762195845304,-156.454501,0.00037038,31]
[392983560,1762195845314,-153.083036,0.00037038,31]
[392983562,1762195845323,-151.0,0.00037038,31]
[392983564,1762195845333,-151.0,0.00037038,31]
[392983567,1762195845344,-151.0,0.00037038,31]
[392983568,1762195845353,-151.0,0.00037038,31]
[392983570,1762195845362,-151.0,0.00037038,31]
[392983572,1762195845371,-151.0,0.00037038,31]
[392983574,1762195845380,-152.093355,0.00037038,31]
[392983576,1762195845389,-151.0,0.00037038,31]
[392983578,1762195845399,-151.0,0.00037038,31]
[392983580,1762195845408,-151.0,0.00037038,31]
[392983582,1762195845417,-213.260896,0.00037038,31]
[392983584,1762195845427,-151.0,0.00037038,31]
[392983586,1762195845436,-151.0,0.00037038,31]
[392983588,1762195845445,-153.529015,0.00037038,31]
[392983590,1762195845454,-218.350405,0.00037038,31]
[392983592,1762195845463,-218.350405,0.00037038,31]
[392983594,1762195845472,-218.350405,0.00037038,31]
[392983596,1762195845482,-218.350405,0.00037038,31]
[392983598,1762195845491,-218.350405,0.00037038,31]
[392983600,1762195845500,-154.953267,0.00037038,31]
[392983602,1762195845509,-218.350405,0.00037038,31]
[392983604,1762195845523,-218.350405,0.00037038,31]
[392983605,1762195845534,-218.350405,0.00037038,31]
[392983606,1762195845544,-218.350405,0.00037038,31]
[392983607,1762195845553,-218.350405,0.00037038,31]
[392983608,1762195845562,-218.350405,0.00037038,31]
[392983610,1762195845571,-218.350405,0.00037038,31]
[392983612,1762195845580,-218.350405,0.00037038,31]
[392983614,1762195845589,-218.350405,0.00037038,31]
[392983616,1762195845598,-218.350405,0.00037038,31]
[392983618,1762195845608,-218.350405,0.00037038,31]
[392983620,1762195845617,-218.350405,0.00037038,31]
[392983622,1762195845626,-218.350405,0.00037038,31]
[392983624,1762195845635,-218.350405,0.00037038,31]
[392983626,1762195845645,-218.350401,0.00037038,31]
[392983628,1762195845656,-151.0,0.00037038,31]
[392983630,1762195845665,-151.0,0.00037038,31]
[392983632,1762195845675,-151.0,0.00037038,31]
[392983634,1762195845684,-155.605565,0.00037038,31]
[392983636,1762195845693,-151.0,0.00037038,31]
[392983637,1762195845702,-151.0,0.00037038,31]
[392983640,1762195845711,-151.0,0.00037038,31]
[392983642,1762195845721,-151.0,0.00037038,31]
[392983644,1762195845730,-151.0,0.00037038,31]
[392983646,1762195845740,-196.589911,0.00037038,31]
[392983648,1762195845749,-151.0,0.00037038,15]
[392983650,1762195845759,-151.0,0.00037038,15]
[392983652,1762195845768,-151.0,0.00037038,15]
[392983654,1762195845778,-151.0,0.00037038,15]
[392983656,1762195845787,-151.0,0.00037038,15]
[392983658,1762195845796,-151.0,0.00037038,15]
[392983660,1762195845806,-232.565243,0.00037038,31]
[392983662,1762195845815,-232.565243,0.00037038,31]
[392983664,1762195845824,-151.0,0.00037038,15]
[392983666,1762195845834,-232.565243,0.00037038,31]
[392983668,1762195845843,-151.0,0.00037038,15]
[392983670,1762195845852,-268.166299,0.00037038,15]
[392983671,1762195845861,-232.565243,0.00037038,31]
[392983673,1762195845870,-232.565243,0.00037038,31]
[392983675,1762195845879,-232.565243,0.00037038,31]
[392983677,1762195845888,-232.565243,0.00037038,31]
[392983680,1762195845898,-232.565243,0.00037038,31]
[392983682,1762195845908,-232.565243,0.00037038,31]
[392983684,1762195845917,-232.565243,0.00037038,31]
[392983686,1762195845926,-232.565243,0.00037038,31]
[392983687,1762195845934,-232.565243,0.00037038,31]
[392983689,1762195845943,-232.565243,0.00037038,31]
[392983691,1762195845952,-232.565243,0.00037038,31]
[392983693,1762195845962,-232.565243,0.00037038,31]
[392983694,1762195845971,-232.565243,0.00037038,31]
[392983696,1762195845981,-232.565243,0.00037038,31]
[392983697,1762195845994,-232.565243,0.00037038,31]
[392983699,1762195846004,-232.565243,0.00037038,31]
[392983701,1762195846013,-232.565244,0.00037038,31]
[392983704,1762195846024,-151.0,0.00037038,31]
[392983705,1762195846034,-151.0,0.00037038,31]
[392983708,1762195846043,-151.0,0.00037038,31]
[392983710,1762195846052,-151.0,0.00037038,31]
[392983712,1762195846061,-151.0,0.00037038,31]
[392983714,1762195846072,-151.0,0.00037038,31]
[392983717,1762195846081,-235.830852,0.00037038,31]
[392983718,1762195846090,-235.830852,0.00037038,31]
[392983720,1762195846099,-235.830852,0.00037038,31]
[392983722,1762195846108,-235.830852,0.00037038,31]
[392983723,1762195846117,-156.612198,0.00037038,31]
[392983725,1762195846127,-235.830852,0.00037038,31]
[392983726,1762195846137,-235.830852,0.00037038,31]
[392983728,1762195846147,-235.830852,0.00037038,31]
[392983729,1762195846157,-235.830852,0.00037038,31]
[392983731,1762195846167,-235.830852,0.00037038,31]
[392983732,1762195846176,-235.830852,0.00037038,31]
[392983734,1762195846185,-151.0,0.00037038,31]
[392983735,1762195846195,-151.0,0.00037038,31]
[392983737,1762195846204,-235.830852,0.00037038,31]
[392983738,1762195846213,-151.0,0.00037038,31]
[392983740,1762195846222,-235.830852,0.00037038,31]
[392983742,1762195846231,-151.0,0.00037038,31]
[392983743,1762195846240,-235.830852,0.00037038,31]
[392983745,1762195846249,-151.0,0.00037038,31]
[392983746,1762195846258,-235.830852,0.00037038,31]
[392983748,1762195846267,-151.0,0.00037038,31]
[392983750,1762195846276,-235.830852,0.00037038,31]
[392983751,1762195846285,-165.882504,0.00037038,31]
[392983753,1762195846294,-235.830852,0.00037038,31]
[392983755,1762195846303,-235.830852,0.00037038,31]
[392983756,1762195846312,-235.830852,0.00037038,31]
[392983758,1762195846321,-235.830852,0.00037038,31]
[392983759,1762195846330,-235.830848,0.00037038,31]
[392983761,1762195846340,-274.575425,0.00037038,31]
[392983763,1762195846349,-151.0,0.00037038,31]
[392983764,1762195846359,-151.0,0.00037038,31]
[392983766,1762195846368,-151.0,0.00037038,31]
[392983768,1762195846377,-151.0,0.00037038,31]
[392983769,1762195846386,-151.0,0.00037038,31]
[392983771,1762195846396,-151.0,0.00037038,31]
[392983772,1762195846405,-192.6079,0.00037038,31]
[392983774,1762195846414,-151.0,0.00037038,31]
[392983775,1762195846423,-151.0,0.00037038,31]
[392983777,1762195846432,-164.291308,0.00037038,31]
[392983779,1762195846441,-151.0,0.00037038,31]
[392983780,1762195846451,-164.291308,0.00037038,31]
[392983782,1762195846460,-151.0,0.00037038,31]
[392983784,1762195846468,-164.291308,0.00037038,31]
[392983785,1762195846477,-164.291308,0.00037038,31]
[392983787,1762195846486,-151.0,0.00037038,31]
[392983789,1762195846495,-164.291308,0.00037038,31]
[392983790,1762195846504,-151.0,0.00037038,31]
[392983792,1762195846513,-161.595887,0.00037038,31]
[392983794,1762195846523,-164.291308,0.00037038,31]
[392983795,1762195846532,-164.291308,0.00037038,31]
[392983797,1762195846540,-164.291308,0.00037038,31]
[392983799,1762195846550,-164.291308,0.00037038,31]
[392983801,1762195846559,-164.291308,0.00037038,31]
[392983803,1762195846570,-164.291308,0.00037038,31]
[392983804,1762195846579,-164.291308,0.00037038,31]
[392983805,1762195846588,-164.291308,0.00037038,31]
[392983806,1762195846598,-164.291308,0.00037038,31]
[392983807,1762195846607,-164.291308,0.00037038,31]
[392983808,1762195846615,-164.291308,0.00037038,31]
[392983809,1762195846624,-164.291308,0.00037038,31]
[392983810,1762195846634,-164.291308,0.00037038,31]
[392983811,1762195846642,-164.291308,0.00037038,31]
[392983812,1762195846651,-164.291312,0.00037038,31]
[392983814,1762195846661,-151.0,0.00037038,31]
[392983815,1762195846670,-151.0,0.00037038,31]
[392983818,1762195846680,-157.241405,0.00037038,31]
[392983819,1762195846689,-156.437433,0.00037038,31]
[392983821,1762195846699,-151.0,0.00037038,31]
[392983823,1762195846708,-151.0,0.00037038,31]
[392983825,1762195846717,-151.0,0.00037038,31]
[392983827,1762195846727,-151.0,0.00037038,31]
[392983829,1762195846736,-162.191317,0.00037038,31]
[392983831,1762195846745,-151.0,0.00037038,31]
[392983833,1762195846755,-151.0,0.00037038,31]
[392983835,1762195846764,-151.0,0.00037038,31]
[392983837,1762195846774,-151.0,0.00037038,31]
[392983839,1762195846783,-211.065204,0.00037038,31]
[392983841,1762195846791,-151.0,0.00037038,31]
[392983843,1762195846800,-151.0,0.00037038,30]
[392983845,1762195846810,-209.035663,0.00037038,30]
[392983847,1762195846819,-151.0,0.00037038,31]
[392983849,1762195846828,-151.0,0.00037038,10]
[392983851,1762195846837,-151.0,0.00037038,10]
[392983853,1762195846846,-151.0,0.00037038,31]
[392983855,1762195846855,-151.0,0.00037038,10]
[392983857,1762195846864,-151.0,0.00037038,10]
[392983859,1762195846873,-151.0,0.00037038,10]
[392983860,1762195846882,-151.0,0.00037038,10]
[392983862,1762195846891,-151.0,0.00037038,10]
[392983865,1762195846901,-151.0,0.00037038,10]
[392983866,1762195846910,-151.0,0.00037038,10]
[392983868,1762195846919,-151.0,0.00037038,10]
[392983871,1762195846928,-223.613904,0.00037038,10]
[392983890,1762195847106,-151.0,0.00037038,31]
[392983892,1762195847117,-151.0,0.00037038,31]
[392983894,1762195847126,-151.0,0.00037038,31]
[392983896,1762195847135,-151.0,0.00037038,31]
[392983898,1762195847144,-151.0,0.00037038,31]
[392983900,1762195847154,-300.0,0.00037039,10]
[392983902,1762195847163,-666.0,0.00037039,10]
[392983904,1762195847172,-666.0,0.00037039,10]
[392983906,1762195847181,-300.0,0.00037039,10]
[392983908,1762195847190,-666.0,0.00037039,10]
[392983910,1762195847199,-300.0,0.00037039,10]
[392983912,1762195847208,-333.99999942,0.00037039,10]
[392983914,1762195847217,-368.0945557,0.00037039,31]
[392983916,1762195847226,-31980.73361577,0.00037039,24]
[392983918,1762195847235,-644.71142354,0.0003704,2]
[392983920,1762195847244,-644.71142354,0.0003704,2]
[392983922,1762195847254,-55074.44568133,0.0003704,2]
[392983924,1762195847263,-218.70696761,0.0003704,30]
[392983926,1762195847272,-368.96341487,0.0003704,30]
[392983928,1762195847281,-1000.0,0.0003704,60]
[392983930,1762195847290,-367.51160817,0.0003704,30]
[392983932,1762195847299,-451.25062429,0.0003704,30]
[392983934,1762195847309,-214.28967136,0.0003704,30]
[392983936,1762195847319,-193.749673,0.0003704,80]
[392983938,1762195847327,-229.92826514,0.0003704,30]
[392983940,1762195847337,-280.67512376,0.0003704,30]
[392983942,1762195847346,-385.73232582,0.0003704,30]
[392983944,1762195847354,-185.40332245,0.0003704,2]
[392983946,1762195847365,-6106.0,0.0003704,15]
[392983948,1762195847374,-10276.73663975,0.0003704,2]
[392983950,1762195847384,-155.0,0.0003704,2]
[392983952,1762195847393,-3400.0,0.0003704,10]
[392983954,1762195847402,-500.0,0.0003704,120]
[392983956,1762195847411,-500.0,0.0003704,120]
[392983958,1762195847420,-500.0,0.0003704,120]
[392983960,1762195847429,-500.0,0.0003704,120]
[392983962,1762195847438,-500.0,0.0003704,120]
[392983964,1762195847447,-150.0,0.0003704,120]
[392983966,1762195847456,-489.17963074,0.0003704,120]
[392983968,1762195847466,-518.56897065,0.0003704,30]
[392983970,1762195847475,-518.56897065,0.0003704,30]
[392983972,1762195847484,-518.56897065,0.0003704,30]
[392983974,1762195847494,-512.77848702,0.0003704,60]
[392983976,1762195847503,-150.0,0.0003704,120]
[392983978,1762195847512,-150.0,0.0003704,120]
[392983980,1762195847522,-150.0,0.0003704,120]
[392983982,1762195847531,-150.0,0.0003704,120]
[392983984,1762195847540,-150.0,0.0003704,120]
[392983986,1762195847549,-150.0,0.0003704,120]
[392983988,1762195847558,-150.0,0.0003704,120]
[392983990,1762195847568,-150.0,0.0003704,120]
[392983992,1762195847577,-150.0,0.0003704,120]
[392983994,1762195847586,-150.0,0.0003704,120]
[392983996,1762195847595,-150.0,0.0003704,120]
[392983997,1762195847604,-500.0,0.0003704,120]
[392983999,1762195847613,-500.0,0.0003704,120]
[392984001,1762195847622,-500.0,0.0003704,120]
[392984003,1762195847632,-500.0,0.0003704,120]
[392984005,1762195847641,-500.0,0.0003704,120]
[392984007,1762195847650,-500.0,0.0003704,120]
[392984010,1762195847659,-500.0,0.0003704,120]
[392984011,1762195847670,-500.0,0.0003704,120]
[392984012,1762195847679,-500.0,0.0003704,120]
[392984013,1762195847689,-554.55908888,0.0003704,120]
[392984014,1762195847698,-500.0,0.0003704,120]
[392984015,1762195847708,-500.0,0.0003704,120]
[392984016,1762195847718,-500.0,0.0003704,120]
[392984017,1762195847727,-150.0,0.0003704,120]
[392984018,1762195847737,-200.0,0.0003704,30]
[392984019,1762195847746,-300.0,0.0003704,30]
[392984020,1762195847755,-209.97524756,0.0003704,120]
[392984021,1762195847766,-198.76402839,0.0003704,50]
[392984022,1762195847776,-457.51665986,0.0003704,120]
[392984023,1762195847786,-2044.78885232,0.0003704,120]
[392984024,1762195847796,-494.30374172,0.0003704,60]
[392984025,1762195847805,-155.001,0.0003704,2]
[392984026,1762195847815,-155.0,0.0003704,2]
[392984027,1762195847825,-155.0,0.0003704,2]
[392984028,1762195847835,-424.74174049,0.0003704,120]
[392984029,1762195847844,-187.57488947,0.0003704,50]
[392984030,1762195847853,-714.4162393,0.0003704,120]
[392984031,1762195847863,-200.78959491,0.0003704,120]
[392984032,1762195847874,-799.999999,0.0003704,120]
[392984033,1762195847884,-335.80289588,0.0003704,50]
[392984034,1762195847894,-193.56170368,0.0003704,2]
[392984035,1762195847903,-207.34476,0.0003704,60]
[392984036,1762195847913,-653.22047,0.0003704,60]
[392984037,1762195847922,-207.34476,0.0003704,60]
[392984038,1762195847931,-653.22047,0.0003704,60]
[392984039,1762195847940,-653.22047,0.0003704,60]
[392984040,1762195847949,-653.22047,0.0003704,60]
[392984041,1762195847959,-653.22047,0.0003704,60]
[392984042,1762195847968,-500.0,0.0003704,120]
[392984043,1762195847977,-500.0,0.0003704,120]
[392984044,1762195847988,-500.0,0.0003704,120]
[392984045,1762195847999,-500.0,0.0003704,120]
[392984046,1762195848008,-500.0,0.0003704,120]
[392984047,1762195848018,-429.50379015,0.0003704,120]
[392984048,1762195848028,-5425.40451394,0.0003704,120]
[392984049,1762195848038,-397.5688243,0.0003704,2]
[392984050,1762195848047,-575.64918063,0.0003704,5]
[392984051,1762195848057,-58896.72339295,0.0003704,2]
[392984052,1762195848067,-159.999998,0.0003704,120]
[392984053,1762195848076,-534.64095117,0.0003704,30]
[392984054,1762195848085,-512.66135078,0.0003704,60]
[392984055,1762195848095,-124022.68014506,0.0003704,2]
[392984056,1762195848104,-450.37080953,0.0003704,120]
[392984057,1762195848114,-216.34223177,0.0003704,91]
[392984058,1762195848124,-203.45731317,0.0003704,30]
[392984059,1762195848133,-214.01936981,0.0003704,120]
[392984060,1762195848143,-1210.0,0.0003704,2]
[392984061,1762195848152,-401.07332979,0.0003704,20]
[392984062,1762195848163,-690.68260564,0.0003704,120]
[392984063,1762195848172,-201.80730718,0.0003704,120]
[392984064,1762195848182,-714.77793986,0.0003704,2]
[392984065,1762195848192,-23608.631308,0.0003704,60]
[392984066,1762195848204,-368.05975349,0.0003704,2]
[392984067,1762195848213,-389.79982808,0.0003704,120]
[392984068,1762195848223,-215.80002496,0.0003704,120]
[392984069,1762195848232,-728.22263729,0.0003704,10]
[392984070,1762195848242,-1293.71912438,0.0003704,2]
[392984071,1762195848251,-354.15408977,0.0003704,2]
[392984072,1762195848260,-1156.02194222,0.0003704,30]
[392984073,1762195848269,-2831.28269526,0.0003704,2]
[392984074,1762195848279,-8131.42223728,0.0003704,7]
[392984075,1762195848289,-634.74400077,0.0003704,6]
[392984076,1762195848298,-226.95725601,0.0003704,120]
[392984077,1762195848308,-17272.87879385,0.0003704,20]
[392984078,1762195848317,-1062.43074853,0.0003704,15]
[392984079,1762195848327,-39999.999999,0.0003704,10]
[392984080,1762195848336,-6733.74784972,0.0003704,7]
[392984081,1762195848346,-1545.84182638,0.0003704,2]
[392984082,1762195848355,-192.40917765,0.0003704,120]
[392984083,1762195848364,-1046.90341171,0.0003704,2]
[392984084,1762195848374,-5273.311155,0.0003704,2]
[392984085,1762195848383,-545.63130348,0.0003704,7]
[392984086,1762195848393,-352.52426298,0.0003704,2]
[392984087,1762195848402,-809.21402083,0.0003704,120]
[392984088,1762195848411,-2496.13633719,0.0003704,2]
[392984089,1762195848421,-1884.48572745,0.0003704,2]
[392984090,1762195848431,-300.0,0.0003704,15]
[392984091,1762195848441,-153.69863897,0.0003704,30]
[392984092,1762195848450,-3808.86383243,0.0003704,7]
[392984093,1762195848459,-2748.58515402,0.0003704,2]
[392984094,1762195848469,-1471.10807852,0.0003704,2]
[392984095,1762195848478,-153.83214845,0.0003704,2]
[392984096,1762195848487,-1705.40678679,0.0003704,2]
[392984097,1762195848497,-997.96979892,0.0003704,5]
[392984098,1762195848506,-202.45418742,0.0003704,120]
[392984099,1762195848515,-509.59573176,0.0003704,30]
[392984100,1762195848528,-355.493575,0.0003704,90]
[392984101,1762195848537,-2376.62705483,0.0003704,14]
[392984102,1762195848547,-253.29737444,0.0003704,2]
[392984103,1762195848555,-500.0,0.0003704,2]
[392984104,1762195848564,-274.27823184,0.0003704,120]
[392984105,1762195848574,-715.38810412,0.0003704,120]
[392984106,1762195848583,-214.40587156,0.0003704,120]
[392984107,1762195848592,-1006.80682748,0.0003704,2]
[392984108,1762195848601,-1282.38799355,0.0003704,2]
[392984109,1762195848610,-532.50948896,0.0003704,120]
[392984110,1762195848620,-318.95518343,0.0003704,60]
[392984111,1762195848629,-247.63755924,0.0003704,2]
[392984112,1762195848638,-281.03615079,0.0003704,120]
[392984113,1762195848647,-261.10038207,0.0003704,30]
[392984115,1762195848657,-449.81800078,0.0003704,120]
[392984116,1762195848667,-554.67186184,0.0003704,60]
[392984117,1762195848676,-345.76028315,0.0003704,120]
[392984119,1762195848686,-1286.22439588,0.0003704,15]
[392984121,1762195848695,-189.69106802,0.0003704,120]
[392984123,1762195848704,-1058.95615751,0.0003704,2]
[392984125,1762195848713,-600.0,0.0003704,5]
[392984126,1762195848722,-554.36799198,0.0003704,2]
[392984127,1762195848731,-497.9364237,0.0003704,60]
[392984128,1762195848740,-1333.45711696,0.0003704,2]
[392984129,1762195848749,-16279.86606508,0.0003704,7]
[392984130,1762195848758,-2232.63023786,0.0003704,2]
[392984131,1762195848767,-23183.89690332,0.0003704,2]
[392984132,1762195848777,-759.96696475,0.0003704,2]
[392984133,1762195848786,-13038.52439094,0.0003704,2]
[392984135,1762195848795,-1951.38596529,0.0003704,2]
[392984136,1762195848804,-187.10410282,0.0003704,2]
[392984137,1762195848814,-15144.73224947,0.0003704,3]
[392984138,1762195848823,-643.0,0.0003704,2]
[392984139,1762195848832,-2003.92248049,0.0003704,4]
[392984140,1762195848841,-986.64251275,0.0003704,2]
[392984141,1762195848851,-500.0,0.0003704,10]
[392984142,1762195848860,-19393.18632839,0.0003704,5]
[392984143,1762195848869,-26066.5766628,0.0003704,7]
[392984144,1762195848879,-582.52458245,0.0003704,2]
[392984145,1762195848888,-253.59446139,0.0003704,30]
[392984146,1762195848897,-1865.74296178,0.0003704,2]
[392984147,1762195848907,-807965.43710224,0.0003704,2]
[392984148,1762195848916,-3294.08054941,0.0003704,2]
[392984149,1762195848925,-178.26648559,0.0003704,2]
[392984150,1762195848935,-997318.18285865,0.0003704,2]
[392984151,1762195848944,-634.66336117,0.0003704,120]
[392984152,1762195848953,-409.07951168,0.0003704,2]
[392984153,1762195848963,-7390.01966434,0.0003704,2]
[392984154,1762195848973,-550.0,0.0003704,2]
[392984155,1762195848982,-1025.14902453,0.0003704,2]
[392984156,1762195848995,-1063.21061948,0.0003704,7]
[392984157,1762195849004,-10874.19570894,0.0003704,2]
[392984158,1762195849013,-5024135.47584017,0.0003704,7]
[392984159,1762195849595,-411.23481003,0.0003704,7]
[392984160,1762195849606,-4635.46546563,0.0003704,7]
[392984161,1762195849617,-17534.11686639,0.0003704,7]
[392984162,1762195849628,-4653.19161018,0.0003704,7]
[392984163,1762195850734,-151.0,0.00027485,2]
[392984164,1762195850744,-151.0,0.00027485,2]
[392984165,1762195850753,-500.0,0.0002797,3]
[392984166,1762195850762,-433233.13104957,0.0003704,7]
[392984167,1762195850797,-851.95664863,0.0003704,7]
[392984168,1762195850815,-22701.16907914,0.0003704,7]
[392984169,1762195851836,-168.37,0.00023963,2]
[392984170,1762195851846,-163.09922097,0.00025598,7]
[392984171,1762195851857,-5.27077903,0.00025598,7]
[392984172,1762195851866,-168.37,0.00027232,7]
[392984173,1762195851876,-168.37,0.00028867,30]
[392984174,1762195851886,-500.0,0.00030636,3]
[392984175,1762195851896,-367.21052596,0.0003694,2]
[392984176,1762195852278,-3578.298669,0.0003694,2]
[392984177,1762195852288,-4566632.98694265,0.0003704,7]
[392984178,1762195852300,-187047.34858251,0.0003704,7]
[392984198,1762196174567,1357.31,0.00026495,120]
[392984231,1762196951203,-500.0,0.00021918,4]
[392984232,1762196951257,-500.0,0.00021918,4]
[392984233,1762196951305,-500.0,0.00021918,4]
[392984234,1762196951350,-500.0,0.00021918,4]